Cogmind - Beta 15 @@@ ROGUE MODE // 2025.10.09 @ 19:37:19 Player: Oertel Result: Self-destructed Performance ------------- Evolutions (2) 1000 Regions Visited (3) 600 Robots Destroyed (43) 215 Value Destroyed (1288) 1288 Prototype IDs (1) 20 Alien Tech Used (0) 0 Bonus (0) 0 TOTAL SCORE: 3123 Bonus ------- None Cogmind --------- Core Integrity 169/550 Matter 143/300 Energy 240/240 System Corruption 0% Temperature Cool (0) Movement Treading (160) Location -8/Materials Parts ------- > --- POWER (1) -------- Nuclear Core > --- PROPULSION (3) --- Light Treads > --- UTILITY (4) ------ Small Storage Unit > --- WEAPON (3) ------- Advanced EMP Blaster > --- INVENTORY (8) ---- Improved Ion Engine Carbon-fiber Leg Medium Storage Unit Weight Redist. System Trap Scanner Light Assault Rifle Heavy Assault Rifle Peak State ------------ > --- POWER ------------ Ion Engine > --- PROPULSION ------- Light Treads Light Treads Armored Treads > --- UTILITY ---------- Large Storage Unit Trap Scanner Hardened Light Armor Plating Hardlight Generator > --- WEAPON ----------- Flak Cannon Flak Cannon Flak Cannon > --- INVENTORY -------- Ion Engine Light Ion Engine Improved Ion Engine Nuclear Core Aluminum Leg Small Storage Unit Medium Storage Unit High-capacity Matter Pod Assault Rifle Assault Rifle Light Assault Rifle Heavy Assault Rifle Flak Cannon Flak Cannon [Rating: 26] Favorites ----------- Power Ion Engine Engine Ion Engine Power Core Nuclear Core Propulsion Light Treads Treads Light Treads Leg Aluminum Leg Utility Large Storage Unit Device Hardlight Generator Storage Large Storage Unit Processor Terrain Scan Processor Protection Hardened Light Armor Plating Weapon Assault Rifle Energy Gun EM Pulse Gun Ballistic Gun Assault Rifle Ballistic Cannon Flak Cannon Launcher Advanced EMP Blaster Build | -11 -10 -9 -8 ------- Run | Yrd Mat Mat Mat Slots Evolved 4 | . . 2 2 Power . | . . . . Propulsion 1 | . . . 1 Utility 2 | . . 1 1 Weapon 1 | . . 1 . Parts Attached 31 | 6 6 3 16 Power 2 | 1 . . 1 Engine 1 | 1 . . . Core 1 | . . . 1 Reactor . | . . . . Propulsion 9 | 2 2 . 5 Treads 4 | . 2 . 2 Leg 5 | 2 . . 3 Wheel . | . . . . Hover . | . . . . Flight . | . . . . Utility 9 | 1 3 2 3 Device 3 | . . . 3 Storage 4 | 1 3 . . Processor 1 | . . 1 . Hackware . | . . . . Protection 1 | . . 1 . Artifact . | . . . . Weapon 11 | 2 1 1 7 Energy Gun 1 | 1 . . . Energy Cannon . | . . . . Ballistic Gun 4 | 1 1 1 1 Ballistic Cannon 5 | . . . 5 Launcher 1 | . . . 1 Special Weapon . | . . . . Impact Weapon . | . . . . Slashing Weapon . | . . . . Piercing Weapon . | . . . . Special Melee Weapon . | . . . . Unidentified Prototypes 1 | . . . 1 Parts Lost 15 | . 2 . 13 Power 1 | . . . 1 Propulsion 6 | . 2 . 4 Utility 3 | . . . 3 Weapon 5 | . . . 5 Highest Loss Streak 12 | . 2 . 12 To Critical Strikes . | . . . . Average Backups 10 | 4 8 13 11 Power 2 | . 1 2 2 Propulsion 3 | 1 4 7 1 Utility 2 | . 1 2 3 Weapon 2 | 1 1 1 3 Tool/Special . | . . . . Unused Backups 14 | . 1 3 10 Power 4 | . . . 4 Propulsion 5 | . 1 2 2 Utility 3 | . . . 3 Weapon 2 | . . 1 1 Tool/Special . | . . . . Average Slot Usage (%) 75 | . 83 86 67 Engine 8 | . 14 11 5 Core 2 | . . . 3 Treads 13 | . 7 22 12 Leg 6 | . 18 . 2 Device 4 | . . . 7 Storage 10 | . 14 11 8 Processor 1 | . . 3 2 Protection 3 | . . 5 4 Energy Gun 2 | . 8 . . Ballistic Gun 14 | . 19 33 6 Ballistic Cannon 7 | . . . 12 Launcher 1 | . . . 2 Peak Build Rating 26 | 6 7 12 26 Average Rating 12 | 3 6 9 16 On Entrance 6 | . 6 7 12 Naked Turns . | . . . . Heaviest Build 55 | 14 29 35 55 Greatest Support 60 | 20 40 40 60 Greatest Overweight (x) 11 | 3 1 . 11 Average Overweight (x) . | . . . . Largest Inventory Capacity 15 | 8 15 15 15 Average Capacity 12 | 7 9 15 13 Most Carried 15 | 8 15 15 15 Average Carried 10 | 4 8 13 11 Final Capacity 15 | 8 15 15 8 Final Carried 15 | 6 15 13 7 Class Distribution -------------------- 52% | Mutant 39% | Tank 8% | Gunner Dominant Class ---------------- Mutant | -10/Materials Tank | -9/Materials Tank | -8/Materials Resources | -11 -10 -9 -8 ----------- Run | Yrd Mat Mat Mat Matter Collected 1345 | 224 171 244 706 Remotely 423 | . . . 423 Salvage Created 1149 | . 159 267 723 Parts 78 | . 14 17 47 Haulers Intercepted 2 | . . 1 1 Recyclers Shooed 4 | . . . 4 Parts Field Recycled . | . . . . Retrieved Matter . | . . . . Parts Self-Destructed . | . . . . Prevented . | . . . . Kills | -11 -10 -9 -8 ------- Run | Yrd Mat Mat Mat Combat Hostiles Destroyed 29 | . 6 4 19 Guns 9 | . 4 4 1 Cannons 17 | . . . 17 AOE 3 | . 2 . 1 Classes Destroyed 13 | . 2 4 7 Worker 2 | . . . 2 Builder 2 | . . . 2 Tunneler 1 | . . . 1 Hauler 2 | . . 1 1 Recycler 1 | . . . 1 Mechanic 1 | . . . 1 Operator 1 | . . 1 . Watcher 4 | . . 1 3 Swarmer 6 | . 3 . 3 Grunt 17 | . 3 2 12 Sentry 4 | . . 2 2 Hunter 1 | . . . 1 Heavy 1 | . . . 1 Best Kill Streak 8 | . 4 3 8 Combat Bots Only 6 | . 4 2 6 Max Kills in Single Turn 2 | . 2 1 2 Gunslinging . | . . . . Exploded 2 | . 2 . 1 Melee . | . . . . Uniques/NPCs Destroyed . | . . . . Combat | -11 -10 -9 -8 -------- Run | Yrd Mat Mat Mat Hostile Shots Fired 319 | . 46 23 250 Missed 98 | . 10 9 79 Hits 221 | . 36 14 171 Projectile 221 | . 36 14 171 Critical Strikes 7 | . . . 7 Damage Taken 2989 | . 410 197 2382 Core 491 | . 68 42 381 Absorbed by Shields 240 | . . . 240 Core Remaining (%) 87 | 100 72 89 . Volleys Fired 95 | . 16 19 60 Largest 3 | . 2 3 3 Hottest 111 | . 60 60 111 Shots Fired 222 | . 32 57 133 Gun 102 | . 32 57 13 Cannon 115 | . . . 115 Launcher 5 | . . . 5 Special . | . . . . Kinetic 212 | . 27 57 128 Thermal . | . . . . Explosive . | . . . . Electromagnetic 10 | . 5 . 5 Robot Hit Streak 11 | . 6 11 10 Robot Miss Streak 10 | . 2 5 10 Penetration Max . | . . . . Secondary Targets 1 | . 1 . . Max Gunslinging Chain 1 | . 1 . . Shots Hit Robots 157 | . 17 36 104 Core Hits 150 | . 9 14 127 Critical Kills . | . . . . Critical Parts Destroyed 1 | . 1 . . Critical Strikes 1 | . 1 . . Destroy 1 | . 1 . . Melee Attacks . | . . . . Impact . | . . . . Slashing . | . . . . Piercing . | . . . . Sneak Attacks . | . . . . Combat Hostiles . | . . . . Follow-up Attacks . | . . . . Damage Inflicted 2961 | . 328 434 2199 Guns 771 | . 214 434 123 Cannons 1782 | . . . 1782 Explosions 389 | . 107 . 282 Melee . | . . . . Ramming 19 | . 7 . 12 Kinetic 2523 | . 184 434 1905 Thermal 136 | . 107 . 29 Explosive . | . . . . Electromagnetic 283 | . 30 . 253 Impact . | . . . . Slashing . | . . . . Piercing . | . . . . Highest Corruption . | . . . . Average Corruption . | . . . . Corruption Purged . | . . . . Corruption Blocked . | . . . . Overload Shots . | . . . . Overflow Damage . | . . . . Projectiles . | . . . . Explosions . | . . . . Melee . | . . . . Knockbacks 73 | . . . 73 Impact . | . . . . Kinetic 65 | . . . 65 Secondary 8 | . . . 8 Self-Inflicted Damage 63 | . 54 . 9 Shots 2 | . 1 . 1 Rammed 3 | . . . 3 Targets Rammed 8 | . 2 . 6 Kicked 5 | . 2 . 3 Crushed . | . . . . Highest Temperature 269 | . 21 77 269 Average Temperature 62 | . 14 22 73 Received Heat Transfer 1044 | . 54 108 882 Siege Activations . | . . . . Martial Activations . | . . . . Shielding Activations . | . . . . Robots Disrupted . | . . . . Combat Hostiles . | . . . . Robots Corrupted . | . . . . Combat Hostiles . | . . . . Parts Fried 1 | . . . 1 Impact Corruptions . | . . . . Robots Melted . | . . . . Combat Hostiles . | . . . . Parts Melted . | . . . . Heat Transferred 100 | . 50 . 50 Parts Sabotaged . | . . . . Parts Stolen . | . . . . Parts Stripped . | . . . . Power Chain Reactions 4 | . 1 . 3 Alert | -11 -10 -9 -8 ------- Run | Yrd Mat Mat Mat Maximum Alert Level 1 | . . . 1 Low Security (%) 78 | 100 100 100 59 Level 1 21 | . . . 40 Level 2 . | . . . . Level 3 . | . . . . Level 4 . | . . . . Level 5 . | . . . . High Security . | . . . . Max Security . | . . . . Peak Influence 252 | . 96 79 252 Initial 20 | . . 14 20 Average 78 | . 29 37 121 Influence Increases 918 | . 156 159 603 Destroy 0b10 Robot/C 580 | . 120 80 380 Destroy 0b10 Robot/NC 70 | . . 15 55 Destroy Leader 152 | . 30 34 88 Successful Hack 10 | . . . 10 Disable Machine 30 | . . 30 . Destroy Structure 16 | . 6 . 10 Lose Combat Pursuer 60 | . . . 60 Influence Decreases 732 | . 120 146 466 Entered New Map 51 | . . 22 29 Time Decay 531 | . 100 124 307 Lost Part 150 | . 20 . 130 Squads Dispatched 14 | . 4 2 8 Investigation 4 | . 2 1 1 Extermination . | . . . . Reinforcement 7 | . 2 1 4 Assault . | . . . . Garrison 3 | . . . 3 Intercept . | . . . . Searches Triggered . | . . . . Construction Impeded 3 | . . . 3 Haulers Reinforced . | . . . . Active Scanning Responses . | . . . . Cargo Convoy Interrupts . | . . . . Stealth | -11 -10 -9 -8 --------- Run | Yrd Mat Mat Mat Distress Signals 5 | . 1 1 3 Communications Jammed . | . . . . Distress Signals . | . . . . Times Spotted 45 | . 7 6 32 Peak Tracking Total 9 | . 4 4 9 Tactical Retreats 4 | . . . 4 Traps | -11 -10 -9 -8 ------- Run | Yrd Mat Mat Mat Traps Triggered 3 | . 2 1 . Indirectly . | . . . . Trap Hack Attempts . | . . . . Triggered . | . . . . Disarmed . | . . . . Reprogrammed . | . . . . Reused . | . . . . Traps Extracted . | . . . . Installed . | . . . . Triggered . | . . . . Machines | -11 -10 -9 -8 ---------- Run | Yrd Mat Mat Mat Machines Disabled 2 | . . 2 . Max in Single Turn 2 | . . 2 . Machines Repaired . | . . . . Machines Dismantled . | . . . . Machines Sabotaged . | . . . . Overloaded Fab Kills . | . . . . Hacking | -11 -10 -9 -8 --------- Run | Yrd Mat Mat Mat Machines Accessed 5 | . 2 2 1 Terminals 3 | . 1 2 . Fabricators . | . . . . Repair Stations . | . . . . Recycling Units 2 | . 1 . 1 Scanalyzers . | . . . . Garrison Access . | . . . . Total Hacks 10 | . 2 4 4 Successful 5 | . 2 1 2 Failed 5 | . . 3 2 Catastrophic . | . . . . Database Lockouts . | . . . . Manual . | . . . . Terminals 5 | . 1 4 . Fabricators . | . . . . Repair Stations . | . . . . Recycling Units 5 | . 1 . 4 Scanalyzers . | . . . . Garrison Access . | . . . . Terminal Hacks 2 | . 1 1 . Alert Level 1 | . 1 . . Recall Investigation 1 | . . 1 . Fabricator Hacks . | . . . . Repair Station Hacks . | . . . . Recycling Unit Hacks 3 | . 1 . 2 Recycle Component 1 | . . . 1 Process 1 | . . . 1 Report Inventory 1 | . 1 . . Scanalyzer . | . . . . Garrison Access Hacks . | . . . . Unauthorized Hacks . | . . . . Terminals . | . . . . Fabricators . | . . . . Repair Stations . | . . . . Recycling Units . | . . . . Scanalyzers . | . . . . Garrison Access . | . . . . Data Cores Recovered . | . . . . Used . | . . . . Hacking Detections 2 | . . 1 1 Full Trace Events . | . . . . Feedback Events . | . . . . Feedback Blocked . | . . . . Robot Schematics Acquired . | . . . . Robots Built . | . . . . Authchips . | . . . . Time . | . . . . Total Robot Build Rating . | . . . . Part Schematics Acquired . | . . . . Parts Built . | . . . . Authchips . | . . . . Time . | . . . . Total Part Build Rating . | . . . . Parts Repaired . | . . . . Time . | . . . . Parts Recycled 1 | . . . 1 Recycled Matter 27 | . . . 27 Retrieved Matter . | . . . . Retrieved Components . | . . . . Parts Scanalyzed . | . . . . Part Schematics Acquired . | . . . . Parts Damaged . | . . . . Bothacking | -11 -10 -9 -8 ------------ Run | Yrd Mat Mat Mat Used RIF Installer . | . . . . Robots Hacked . | . . . . Non-combat . | . . . . Combat . | . . . . Robot Hacks Applied . | . . . . Relay Couplers Released . | . . . . Fabnet Peak Effective % . | . . . . Robots Rewired . | . . . . Allies Hacked . | . . . . Hacks Repelled . | . . . . Allies | -11 -10 -9 -8 -------- Run | Yrd Mat Mat Mat Total Allies . | . . . . Largest Group . | . . . . Highest-Rated Group . | . . . . Highest-Rated Ally . | . . . . Total Orders . | . . . . Ally Attacks . | . . . . Total Damage . | . . . . Kills . | . . . . Allies Corrupted . | . . . . Allies Melted . | . . . . Intel | -11 -10 -9 -8 ------- Run | Yrd Mat Mat Mat Active Infowar (turns) 282 | . . . 282 Traps 282 | . . . 282 Robot Analysis Total . | . . . . Derelict Logs Recovered . | . . . . Drone Launches . | . . . . Drone Recoveries . | . . . . Exploration | -11 -10 -9 -8 ------------- Run | Yrd Mat Mat Mat Turns Passed 1583 | 85 390 261 847 Spaces Moved 709 | 52 233 120 304 Core 27 | 19 . . 8 Treads 465 | . 64 120 281 Legs 217 | 33 169 . 15 Wheels . | . . . . Hover . | . . . . Flight . | . . . . Fastest Speed 50 | 50 120 160 150 Average Speed 162 | 130 131 160 192 Slowest Speed 600 | 200 190 160 600 Overloaded Moves . | . . . . Propulsion Burnouts . | . . . . Robots Hopped . | . . . . Potential Cave-ins . | . . . . Cave-ins Triggered . | . . . . Exploration Rate (%) 23 | 5 35 18 34 Regions Visited 3 Branch Regions . Pre-discovered Areas . | . . . . Known Exits Taken . | . . . . Unknown Exits Taken 3 | 1 1 1 . Scrap Searched . | . . . . Spaces Dug . | . . . . Terrain Destroyed 15 | . 5 . 10 Melee . | . . . . Projectile . | . . . . AOE 15 | . 5 . 10 Terrain Rammed . | . . . . Walls Destroyed . | . . . . Machines Disabled . | . . . . Actions | -11 -10 -9 -8 --------- Run | Yrd Mat Mat Mat Total 953 | 69 287 151 446 Wait 45 | . 9 3 33 Move 706 | 51 232 119 304 Hop . | . . . . Pick Up 44 | 12 16 3 13 Fast Attach 8 | . . 2 6 Attach 17 | 6 2 1 8 Detach 4 | . . . 4 Swap 10 | . 5 . 5 Drop 16 | . 5 4 7 Fire 95 | . 16 19 60 Melee . | . . . . Ram . | . . . . Kick 5 | . 2 . 3 Crush 3 | . . . 3 Escape Stasis . | . . . . Rewire . | . . . . Trap . | . . . . Miscellaneous . | . . . . Route ------- -11/Scrapyard -10/Materials -9/Materials (discovered 2 exits: *Mat / [*Sto]) -8/Materials History --------- Turn | Location | Event 21 | -11/Scrapyard | Discovered new exit (range 16) 86 | -11/Scrapyard | Entered Materials 324 | -10/Materials | Build established: Mutant 433 | -10/Materials | Discovered new exit (range 9) 476 | -10/Materials | Entered another Materials area 476 | -9/Materials | Evolved 2 slots: Utility x1, Weapon x1 477 | -9/Materials | Discovered new exit (range 15) 648 | -9/Materials | Discovered new exit (range 10) 737 | -9/Materials | Entered another Materials area 737 | -8/Materials | Evolved 2 slots: Propulsion x1, Utility x1 909 | -8/Materials | Build established: Tank 1271 | -8/Materials | Core integrity fell below 50% 1289 | -8/Materials | Garrison activated, responded to threat 1332 | -8/Materials | Lost 12 parts (1p3n3u5w) 1537 | -8/Materials | Build established: Mutant 1584 | -8/Materials | Self-destructed Last Messages --------------- 01440_ Acquired Sml. Storage Unit. 01440_ U-05 Engineer lays Concrete. 01440_ U-05 Engineer builds a Wall. 01441_ ALERT: Alarm triggered, dispatching investigation squad. 01442_ U-05 Engineer lays Concrete. 01445_ Acquired Weight Redist. System. 01445_ U-05 Engineer lays Concrete. 01445_ U-05 Engineer builds a Wall. 01446_ U-05 Engineer lays Concrete. 01450_ R-06 Scavenger collects Corrupted Lgt. Treads. 01450_ U-05 Engineer lays Concrete. 01454_ R-06 Scavenger collects Corrupted Lgt. Treads. 01486_ Acquired Carbon-fiber Leg. 01506_ R-06 Scavenger collects Prototype Hover Unit. 01523_ K-01 Serf collects debris. 01584_ Connecting with Terminal... Map ----- +----------------------------------------------------+ | | | | | | | ???????????????????????????????? | | ???????????????????????????????? | | ???????????????????????????????? | | ???????????????????????????????? | | ???????????????????????????????? | | ???????????????????????????????? | | ???????????????????????????????? | | ???????????????????????????????? | | ???????????????????????????????? | | ???????????????????????????????? | | ???????????????????????????????? | | ???????????????????????????????? | | ???????????????????????????????? | | ???????????????????????????????? | | ???????????????????????????????? | | ???????????????????????????????? | | ???????????????????????????????? | | ???????????????????????????????? | | ???????????????????????????????? | | ???????????????????????######### | | ???????????????????????+ # | | ???????????????????????# T ![* # | | ??????????????????###??# @ ![* # | | ???????????????# ?+ [* # | | ???????????????# ##+#####? | | ???????????????# #????? | | ?????????????????######## #????? | | ????????????????????????# #????? | | ????????????????????????# #????? | | ????????????????????????# #????? | | ????????????????????????# #????? | | ????????????????????????# #????? | | ????????##########??????# #????? | | ????????# ######## #????? | | ????????# + #????? | | ######### ##### ####????? | | # #???# #???????? | | # #???# #???????? | | + #???# #???????? | | # #???# #????#??? | | # #???# #??""" ?? | | ## #???# # """" ?? | | ############### + """" ?? | | #### # != # ## # #? | | ???# + != !# ! ## #?? = #? | | ???# # != # !?# #???? #? | | ???# #?####### ?# #??????#? | +----------------------------------------------------+ Best States ------------- Heat Dissipation 31 Energy Generation 14 Energy Capacity 250 Matter Stores 300 Matter Capacity 300 Sight Range 16 Terrain Scan Density 85 Armor Coverage 150 Evasion (%) 55 Recoil Reduction 3 Item Schematics ----------------- None Robot Schematics ------------------ None Fabricated ------------ Nothing Repaired ---------- Nothing Alien Tech Used ----------------- None Achievements -------------- GoHome() More Dakka Please Use The Force Challenges ------------ None Game ------ Seed HeartImprinterShockpuncher Manual? 0 Play Time 00:29:56 Cumulative 9.9 hours Start 2025.10.08 @ 12:28:17 End 2025.10.09 @ 19:37:19 Sessions 5 Manual Loads 0 Difficulty Rogue Special Mode None Game No. 7 Rogue 7 Adventurer 0 Explorer 0 Win Type - Total 0 Types 0/0/0/0/0/0/0/0/0/0 Lore% 4 Gallery% 7 Achievement% 13 Wizard Run 0 Options --------- Layout 1 ASCII 0 Keyboard 0 Movement Mouse Keybinds 0 Fullscreen 2 Font 32/Tamsyn Map View 50x35 Zoom Use 0% Tactical HUD 1 Map Filters NONE Filters NONE Steam 1 RUN: 74d59b1f-f607-45f6-a891-97e248c8659e